bitfinex/quotes_SOLUSD_20250817
["timestamp","ask_amount","ask_price","bid_price","bid_amount"]
[1755391793675,96.14370754,188.64,188.63,0.03]
[1755391793871,92.22589638,188.64,188.63,0.03]
[1755391794083,96.14768203,188.64,188.63,0.03]
[1755391795886,26.0,188.62,188.61,0.03]
[1755391796057,77.36684395,188.62,188.61,0.03]
[1755391796263,78.02684395,188.62,188.61,0.03]
[1755391796577,88.72146341,188.62,188.61,0.03]
[1755391797677,94.02312813,188.62,188.61,0.03]
[1755391799273,96.14847013,188.62,188.61,0.03]
[1755391800492,33.97847076,188.62,188.61,0.03]
[1755391800787,70.3495941,188.62,188.61,0.03]
[1755391801293,70.34620874,188.62,188.61,0.03]
[1755391801463,44.34640801,188.62,188.61,0.03]
[1755391801663,44.34508454,188.62,188.61,0.03]
[1755391802690,44.34508454,188.62,188.61,2.10677708]
[1755391803695,44.34508454,188.62,188.61,0.03]
[1755391804192,45.00508454,188.62,188.61,0.03]
[1755391804774,44.34508454,188.62,188.61,0.03]
[1755391806715,7.44508454,188.62,188.61,2.10677708]
[1755391807075,3.52648498,188.62,188.61,2.10677708]
[1755391807783,3.52648498,188.62,188.61,7.40872289]
[1755391815176,3.52648498,188.62,188.61,2.10677708]
[1755391816175,3.52895551,188.62,188.61,2.10677708]
[1755391822413,3.52895551,188.62,188.61,7.40872289]
[1755391824101,0.06,188.63,188.61,87.30872289]
[1755391824396,0.06,188.63,188.62,2.07677708]
[1755391826307,0.06,188.63,188.62,7.3784418]
[1755391828706,0.06,188.63,188.62,44.2584418]
[1755391829511,0.06,188.63,188.62,124.1584418]
[1755391834023,0.06,188.63,188.62,81.97677708]
[1755391834335,0.78,188.63,188.62,81.97677708]
[1755391837120,4.30457954,188.63,188.61,0.03]
[1755391837295,3.52457954,188.62,188.61,0.03]
[1755391837495,4.24457954,188.62,188.61,0.03]
[1755391838616,4.24457954,188.62,188.61,2.10677708]
[1755391838993,0.72,188.62,188.61,2.10677708]
[1755391839222,0.06,188.63,188.61,44.28871699]
[1755391839521,0.06,188.63,188.62,2.07677708]
[1755391839715,3.58380499,188.63,188.62,2.07677708]
[1755391840094,3.58380499,188.63,188.62,2.10677708]
[1755391840519,3.58380499,188.63,188.62,7.4084418]
[1755391840823,0.06,188.63,188.62,7.4084418]
[1755391840997,0.06,188.65,188.63,15.10621557]
[1755391841206,0.06,188.67,188.66,26.0]
[1755391841401,0.06,188.67,188.66,64.95677708]
[1755391842320,0.06,188.67,188.66,70.25731773]
[1755391842641,0.06,188.69,188.67,15.10621557]
[1755391842801,0.06,188.73,188.71,26.0]
[1755391842999,0.06,188.73,188.72,40.65415305]
[1755391843438,1e-08,188.73,188.72,55.76036862]
[1755391843596,0.06,188.75,188.74,26.0]
[1755391843796,0.06,188.75,188.74,66.14426751]
[1755391844318,0.06,188.75,188.74,71.44256145]
[1755391845425,0.06,188.75,188.74,71.42256145]
[1755391846209,0.06,188.75,188.74,151.32256145]
[1755391847928,0.06,188.75,188.74,114.44256145]
[1755391848103,0.06,188.75,188.74,151.32256145]
[1755391848302,0.72,188.75,188.74,88.44256145]
[1755391848503,0.72,188.75,188.74,125.32256145]
[1755391848725,0.72,188.75,188.74,116.78]
[1755391848895,0.72,188.75,188.74,79.9]
[1755391850195,0.72,188.75,188.73,3.24426751]
[1755391850416,0.72,188.75,188.72,5.29875832]
[1755391850617,0.72,188.75,188.73,3.24426751]
[1755391851696,0.72,188.75,188.72,3.24426751]
[1755391852026,0.72,188.75,188.7,3.24426751]
[1755391852621,3.24426751,188.71,188.66,3.24426751]
[1755391852803,0.66,188.7,188.66,3.24426751]
[1755391853007,0.66,188.7,188.67,3.24426751]
[1755391853304,0.66,188.7,188.68,3.24426751]
[1755391853631,12.59138755,188.74,188.69,3.24426751]
[1755391854324,0.66,188.73,188.69,3.24426751]
[1755391854914,0.66,188.73,188.68,3.24426751]
[1755391855609,3.90426751,188.73,188.68,3.24426751]
[1755391855803,0.66,188.72,188.68,3.24426751]
[1755391856612,0.66,188.72,188.68,3.27426751]
[1755391857836,3.90426751,188.72,188.68,0.03]
[1755391858004,3.24426751,188.7,188.68,0.03]
[1755391858442,0.66,188.69,188.68,0.03]
[1755391859922,0.66,188.71,188.68,3.27426751]
[1755391860122,0.66,188.7,188.68,3.27426751]
[1755391860634,12.59155745,188.74,188.69,29.24426751]
[1755391860635,3.51987633,188.74,188.69,29.24426751]
[1755391860945,0.06,188.75,188.72,3.24426751]
[1755391861110,0.66,188.73,188.71,3.24426751]
[1755391861302,0.66,188.73,188.69,3.24426751]
[1755391861501,0.66,188.73,188.68,3.27426751]
[1755391861913,0.66,188.73,188.68,8.57410928]
[1755391862446,0.66,188.73,188.69,3.24426751]
[1755391864641,0.66,188.72,188.7,3.24426751]
[1755391864949,0.66,188.73,188.71,3.24426751]
[1755391866460,0.06,188.75,188.72,3.24426751]
[1755391866681,0.06,188.75,188.73,3.24426751]
[1755391866847,0.06,188.75,188.74,3.24426751]
[1755391867232,0.06,188.75,188.74,8.54256145]
[1755391867635,0.06,188.75,188.73,8.54279019]
[1755391867841,0.72,188.75,188.73,8.54279019]
[1755391870260,0.06,188.75,188.73,3.24426751]
[1755391870475,0.66,188.74,188.71,85.19908942]
[1755391870764,0.66,188.74,188.71,5.29908942]
[1755391870980,0.66,188.74,188.71,8.54335693]
[1755391871332,0.06,188.75,188.72,3.24426751]
[1755391872043,0.06,188.75,188.73,3.24426751]
[1755391873235,0.06,188.75,188.73,8.54277911]
[1755391873770,0.06,188.75,188.74,3.24426751]
[1755391878645,0.06,188.75,188.74,8.54256145]
[1755391882921,0.06,188.75,188.74,88.44256145]
[1755391883295,0.06,188.75,188.74,104.07860641]
[1755391883612,0.06,188.77,188.76,3.24426751]
[1755391884810,0.06,188.77,188.76,8.54200008]
[1755391888599,0.06,188.77,188.76,88.44200008]
[1755391891455,0.06,188.77,188.76,107.32225641]
[1755391891632,0.06,188.79,188.77,15.10621557]
[1755391891924,0.06,188.79,188.78,40.77398464]
[1755391893449,0.06,188.79,188.78,46.07115595]
[1755391897335,0.06,188.79,188.78,125.97115595]
[1755391897535,0.06,188.79,188.78,125.44143882]
[1755391898350,0.72,188.79,188.78,125.44143882]
[1755391901955,0.72,188.79,188.78,120.14426751]
[1755391902260,0.72,188.79,188.78,79.9]
[1755391903344,0.72,188.79,188.76,120.14426751]
[1755391904062,0.72,188.79,188.76,83.14426751]
[1755391904266,0.72,188.79,188.76,79.9]
[1755391905072,3.24426751,188.78,188.72,45.56307605]
[1755391905250,0.69,188.77,188.72,45.56307605]
[1755391905451,0.69,188.77,188.73,3.27426751]
[1755391905859,0.69,188.77,188.73,8.5727476]
[1755391906053,0.69,188.77,188.74,3.24426751]
[1755391906762,5.98756489,188.77,188.73,3.27426751]
[1755391906951,0.69,188.76,188.73,3.27426751]
[1755391907652,0.69,188.76,188.74,0.03]
[1755391911965,0.69,188.76,188.74,3.27426751]
[1755391912685,3.53013013,188.77,188.75,3.24426751]
[1755391913049,0.69,188.77,188.75,3.24426751]
[1755391913854,3.53031828,188.78,188.75,3.24426751]
[1755391914171,0.69,188.76,188.75,3.24426751]
[1755391917976,4.22221869,188.78,188.75,3.24426751]
[1755391918147,0.06,188.79,188.75,3.24426751]
[1755391918347,0.69,188.77,188.75,8.54213207]
[1755391918548,0.69,188.77,188.76,3.24426751]
[1755391919185,0.69,188.77,188.75,8.54213207]
[1755391919894,0.69,188.76,188.75,3.24426751]
[1755391920053,0.69,188.76,188.74,8.57252273]
[1755391920257,0.69,188.76,188.74,0.03]
[1755391920454,3.93426751,188.76,188.74,0.03]
[1755391920658,0.69,188.76,188.74,0.03]
[1755391920858,0.69,188.75,188.74,0.03]
[1755391925967,50.27414905,188.75,188.73,0.03]
[1755391926270,6.77725915,188.74,188.72,0.03]
[1755391926469,33.30613581,188.73,188.72,0.03]
[1755391926698,33.99613581,188.73,188.72,0.03]
[1755391926889,33.99613581,188.73,188.71,0.03]
[1755391927068,7.46725915,188.72,188.71,0.03]
[1755391928216,9.52184708,188.72,188.71,0.03]
[1755391928361,12.76611459,188.72,188.71,0.03]
[1755391935792,49.76611459,188.72,188.71,0.03]
[1755391940396,64.87233016,188.72,188.71,0.03]
[1755391941818,68.78115476,188.72,188.71,0.03]
[1755391942000,68.78115476,188.72,188.7,0.03]
[1755391942311,43.23409665,188.71,188.7,0.03]
[1755391942995,58.34031222,188.71,188.7,0.03]
[1755391943514,32.34031222,188.71,188.7,0.03]
[1755391943702,32.34031222,188.71,188.69,0.03]
[1755391943703,15.10621557,188.7,188.69,0.03]
[1755391943904,63.51229932,188.7,188.69,0.03]
[1755391944088,67.91133479,188.7,188.69,0.03]
[1755391944414,73.21075185,188.7,188.69,0.03]
[1755391945614,73.21075185,188.7,188.68,0.03]
[1755391945793,11.93496041,188.69,188.68,0.03]
[1755391946809,21.63369379,188.69,188.68,0.03]
[1755391948091,17.23465832,188.69,188.68,0.03]
[1755391949017,32.34087389,188.69,188.67,0.03]
[1755391949235,52.80073452,188.68,188.67,0.03]
[1755391949441,48.40608375,188.68,188.67,0.03]
[1755391950119,53.70606255,188.68,188.67,0.03]
[1755391950937,58.09864644,188.68,188.67,0.03]
[1755391952640,58.07753251,188.68,188.67,0.03]
[1755391952847,53.68616495,188.68,188.67,0.03]
[1755391954140,41.10621557,188.66,188.62,0.03]
[1755391954337,86.03701087,188.66,188.62,0.03]
[1755391954540,86.75701087,188.66,188.62,0.03]
[1755391955055,92.05755152,188.66,188.62,0.03]
[1755391955821,95.30181903,188.66,188.62,0.03]
[1755391960430,91.39299443,188.66,188.62,0.03]
[1755391960749,95.29668483,188.66,188.62,0.03]
[1755391964239,99.687214,188.66,188.62,0.03]
[1755391964635,101.812331,188.66,188.62,0.03]
[1755391966830,97.42180183,188.66,188.62,0.03]
[1755391967031,44.35048308,188.64,188.62,0.03]
[1755391967246,89.23614418,188.64,188.62,0.03]
[1755391967552,89.95614418,188.64,188.62,0.03]
[1755391967750,73.6546107,188.64,188.62,0.03]
[1755391969358,69.2572468,188.64,188.62,0.03]
[1755391970749,68.09383497,188.64,188.62,0.03]
[1755391972454,68.10389827,188.64,188.62,0.03]
[1755391973958,17.18707125,188.63,188.62,1e-08]
[1755391974265,31.20458014,188.63,188.62,1e-08]
[1755391974767,33.33014814,188.63,188.62,1e-08]
[1755391975129,33.33014814,188.63,188.61,1e-08]
[1755391975391,41.10621557,188.6,188.59,0.03]
[1755391975547,87.55391899,188.6,188.59,0.03]
[1755391975866,96.23092958,188.6,188.59,0.03]
[1755391976650,97.40262365,188.6,188.59,0.03]
[1755391978040,97.40086846,188.6,188.59,0.03]
[1755391978540,97.40870706,188.6,188.59,0.03]
[1755391981784,15.10621557,188.59,188.58,0.03]
[1755391981982,30.19241524,188.59,188.58,0.03]
[1755391982180,30.91241524,188.59,188.58,0.03]
[1755391982487,30.91265597,188.59,188.58,0.03]
[1755391982861,31.81444528,188.59,188.58,0.03]
[1755391983188,31.8145814,188.59,188.58,0.03]
[1755391983360,36.21645189,188.59,188.58,0.03]
[1755391984888,38.34235889,188.59,188.58,0.03]
[1755391985268,33.9404884,188.59,188.58,0.03]
[1755391985581,38.34405334,188.59,188.58,0.03]
[1755391985986,38.34626531,188.59,188.58,0.03]
[1755391988391,33.94270037,188.59,188.58,0.03]
[1755391988973,33.94448378,188.59,188.58,0.03]
[1755391989163,38.34980694,188.59,188.58,0.03]
[1755391989394,33.94448378,188.59,188.58,0.03]
[1755391990203,37.63001013,188.59,188.58,0.03]
[1755391990380,3.52093264,188.59,188.58,0.12]
[1755391990575,45.76344072,188.59,188.58,0.12]
[1755391993270,49.01599047,188.59,188.58,0.03]
[1755391994300,52.93497606,188.59,188.58,0.03]
[1755391995194,52.93497606,188.59,188.58,0.12]
[1755391995392,52.93497606,188.59,188.58,0.03]
[1755391995586,47.63246798,188.59,188.58,0.12]
[1755391996302,44.37991823,188.59,188.58,0.12]
[1755391996483,47.63246798,188.59,188.58,0.12]
[1755391996686,47.63246798,188.59,188.58,0.03]
[1755391997913,47.63246798,188.59,188.58,0.12]
[1755391998782,46.46063496,188.59,188.58,0.03]
[1755391999707,46.46063496,188.59,188.58,0.12]
[1755392000581,46.46063496,188.59,188.58,0.03]
[1755392001102,44.37991823,188.59,188.58,0.03]
[1755392002892,46.46063496,188.59,188.58,0.03]
[1755392005304,44.37991823,188.59,188.58,0.03]
[1755392007606,7.43991823,188.59,188.58,0.03]
[1755392007785,44.37991823,188.59,188.58,0.03]
[1755392008387,7.43991823,188.59,188.58,0.03]
[1755392008587,44.37991823,188.59,188.58,0.03]
[1755392008897,3.52093264,188.59,188.58,2.20071673]
[1755392009082,40.46093264,188.59,188.58,2.20071673]
[1755392009586,40.46093264,188.59,188.58,0.03]
[1755392009798,45.03904704,188.59,188.58,0.03]
[1755392010091,41.6398093,188.59,188.58,0.03]
[1755392010301,40.9898093,188.59,188.58,0.03]
[1755392010900,40.46093264,188.59,188.58,0.12]
[1755392011304,40.46093264,188.59,188.58,2.11071673]
[1755392011618,40.46093264,188.59,188.58,0.03]
[1755392015117,41.6398093,188.59,188.58,0.03]
[1755392016216,41.11093264,188.59,188.58,0.03]
[1755392016425,41.6398093,188.59,188.58,0.03]
[1755392016829,46.94231738,188.59,188.58,0.03]
[1755392017013,41.6398093,188.59,188.58,0.03]
[1755392017519,46.94231738,188.59,188.58,0.03]
[1755392017720,46.41344072,188.59,188.58,0.03]
[1755392017921,46.94231738,188.59,188.58,0.03]
[1755392018926,46.41344072,188.59,188.58,0.03]
[1755392019229,40.46093264,188.59,188.58,0.03]
[1755392019422,41.6398093,188.59,188.58,0.03]
[1755392020526,46.94231738,188.59,188.58,0.03]
[1755392021106,50.87291679,188.59,188.58,0.03]
[1755392022528,98.46537544,188.59,188.58,0.03]
[1755392022830,15.10621557,188.58,188.57,0.03]
[1755392023031,25.28846435,188.58,188.57,0.03]
[1755392023212,23.20774762,188.58,188.57,0.03]
[1755392023401,25.28846435,188.58,188.57,0.03]
[1755392023608,30.59125361,188.58,188.57,0.03]
[1755392023815,36.45968895,188.58,188.56,0.03]
[1755392024112,36.45968895,188.58,188.54,0.03]
[1755392024113,41.10621557,188.55,188.54,0.03]
[1755392024315,87.57846435,188.55,188.54,0.03]
[1755392024512,92.61877751,188.55,188.54,0.03]
[1755392024829,94.69949424,188.55,188.54,0.03]
[1755392025201,88.80734101,188.55,188.54,0.03]
[1755392025427,88.80734101,188.55,188.52,0.03]
[1755392025609,26.90946034,188.53,188.52,0.03]
[1755392025811,71.82986905,188.53,188.52,0.03]
[1755392026019,72.52986905,188.53,188.52,0.03]
[1755392026634,79.01043689,188.53,188.52,0.03]
[1755392028144,74.59210446,188.53,188.52,0.03]
[1755392029726,74.58478127,188.53,188.52,0.03]
[1755392032336,100.58478127,188.53,188.52,0.03]
[1755392032630,105.0031137,188.53,188.52,0.03]
[1755392032818,104.47423704,188.53,188.52,0.03]
[1755392033203,100.05590461,188.53,188.52,0.03]
[1755392033532,74.58478127,188.53,188.52,0.03]
[1755392035931,74.57987569,188.53,188.52,0.03]
[1755392040542,71.32584512,188.53,188.52,0.03]
[1755392040745,74.57987569,188.53,188.52,0.03]
[1755392041038,71.32584512,188.53,188.52,0.03]
[1755392041242,70.62584512,188.53,188.52,0.03]
[1755392041414,95.27262169,188.53,188.52,0.03]
[1755392041614,98.55665169,188.53,188.52,0.03]
[1755392044740,91.31859112,188.53,188.52,0.03]
[1755392046237,44.90817994,188.53,188.52,0.12]
[1755392046564,50.21237555,188.53,188.52,0.03]
[1755392047422,68.10016222,188.53,188.52,0.03]
[1755392048038,70.22640722,188.53,188.52,0.03]
[1755392048348,68.10016222,188.53,188.52,0.03]
[1755392048549,70.22640822,188.53,188.52,0.03]
[1755392048733,68.10016222,188.53,188.52,0.03]
[1755392049322,65.31859112,188.53,188.52,0.03]
[1755392051252,44.90817994,188.53,188.52,0.03]
[1755392051454,44.90817994,188.53,188.52,0.12]
[1755392051639,44.90817994,188.53,188.52,0.03]
[1755392052965,50.91237555,188.53,188.52,0.03]
[1755392053326,50.21237555,188.53,188.52,0.03]
[1755392054151,50.91237555,188.53,188.52,0.03]
[1755392054366,69.27115161,188.53,188.52,0.03]
[1755392054987,66.01859112,188.53,188.52,0.03]
[1755392055144,71.39739761,188.53,188.52,0.03]
[1755392055541,68.14483712,188.53,188.52,0.03]
[1755392055745,71.39739761,188.53,188.52,0.03]
[1755392057246,69.27115161,188.53,188.52,0.03]
[1755392058161,64.65278097,188.53,188.52,0.03]
[1755392058359,68.57183537,188.53,188.52,0.03]
[1755392058751,68.57201863,188.53,188.52,0.03]
[1755392060277,69.25201863,188.53,188.52,0.03]
[1755392061454,71.37826463,188.53,188.52,0.03]
[1755392063077,75.79659706,188.53,188.52,0.03]
[1755392064072,72.54403657,188.53,188.52,0.03]
[1755392064283,75.79659706,188.53,188.52,0.03]
[1755392065073,73.67035106,188.53,188.52,0.03]
[1755392065407,26.0,188.51,188.5,0.03]
[1755392065554,70.90904696,188.51,188.5,0.03]
[1755392066156,70.90904696,188.51,188.39,70.41263487]
[1755392066157,15.10621557,188.5,188.42,0.12]
[1755392066372,30.42293454,188.46,188.42,0.12]
[1755392066579,44.7201703,188.45,188.42,3.37256049]
[1755392066784,7.4401703,188.44,188.43,3.37256049]
[1755392068783,7.4401703,188.44,188.43,3.25256049]
[1755392068978,7.4401703,188.44,188.42,3.25256049]
[1755392069167,7.4401703,188.43,188.42,3.25256049]
[1755392069358,44.7201703,188.43,188.41,3.25256049]
[1755392069560,7.4401703,188.42,188.41,3.25256049]
[1755392070470,3.52093264,188.42,188.41,3.25256049]
[1755392070965,3.52093264,188.42,188.4,0.12]
[1755392071168,37.28,188.43,188.41,3.25256049]
[1755392071374,3.53563544,188.42,188.41,3.25256049]
[1755392072377,3.53563544,188.42,188.4,3.25256049]
[1755392072582,37.28,188.43,188.4,3.37256049]
[1755392072795,3.53387363,188.42,188.41,2.20359677]
[1755392073165,3.53387363,188.42,188.41,2.08359677]
[1755392073889,3.53387363,188.42,188.4,2.08359677]
[1755392074080,37.28,188.43,188.4,2.08359677]
[1755392074266,3.53313163,188.42,188.4,2.08359677]
[1755392074465,37.28,188.43,188.4,2.08359677]
[1755392074687,3.53257826,188.42,188.4,2.08359677]
[1755392074983,37.28,188.43,188.4,2.08359677]
[1755392075164,3.53245635,188.42,188.4,2.08359677]
[1755392075362,37.96,188.43,188.4,2.08359677]
[1755392075562,3.53198015,188.42,188.41,2.08359677]
[1755392076060,37.28,188.43,188.41,2.08359677]
[1755392076259,37.28,188.43,188.4,2.08359677]
[1755392077064,37.96,188.43,188.41,2.08359677]
[1755392077582,37.96,188.43,188.39,5.45812719]
[1755392077792,37.96,188.43,188.41,2.08359677]
[1755392080790,26.0,188.47,188.42,0.12]
[1755392080991,40.75000893,188.46,188.43,2.08359677]
[1755392081165,3.53000893,188.45,188.43,2.08359677]
[1755392081364,37.22,188.46,188.44,2.08359677]
[1755392081583,3.53010996,188.45,188.44,2.08359677]
[1755392082278,3.53010996,188.45,188.41,5.42752581]
[1755392082591,0.68,188.45,188.44,2.08359677]
[1755392082792,4.21007696,188.45,188.44,2.08359677]
[1755392083163,3.53007696,188.45,188.44,2.08359677]
[1755392085921,4.24007696,188.45,188.44,2.08359677]
[1755392086616,3.53007696,188.45,188.44,2.08359677]
[1755392089015,4.24007696,188.45,188.44,2.08359677]
[1755392089720,3.53007696,188.45,188.44,2.08359677]
[1755392090625,4.24007696,188.45,188.44,2.08359677]
[1755392095343,3.53007696,188.45,188.44,2.08359677]
[1755392095498,4.24007696,188.45,188.44,2.08359677]
[1755392095698,3.53007696,188.45,188.44,2.08359677]
[1755392097326,4.24007696,188.45,188.44,2.08359677]
[1755392098232,4.24007696,188.45,188.43,2.08359677]
[1755392098407,0.71,188.44,188.43,2.08359677]
[1755392098832,37.93,188.46,188.43,2.08359677]
[1755392099016,4.24350057,188.45,188.43,2.08359677]
[1755392099213,0.71,188.45,188.43,2.08359677]
[1755392099620,0.71,188.45,188.42,85.2072833]
[1755392099938,0.71,188.45,188.43,2.08359677]
[1755392100242,0.71,188.45,188.42,79.9]
[1755392100443,3.53395385,188.44,188.42,79.9]
[1755392100732,0.71,188.43,188.42,79.9]
[1755392100935,0.71,188.43,188.4,82.01359677]
[1755392101623,0.71,188.43,188.41,2.08359677]
[1755392101827,0.71,188.42,188.41,2.08359677]
[1755392103212,37.85,188.44,188.41,2.08359677]
[1755392103428,4.24499939,188.43,188.41,2.08359677]
[1755392103615,0.71,188.43,188.41,2.08359677]
[1755392104651,0.71,188.42,188.41,2.08359677]
[1755392105138,0.71,188.42,188.4,2.11359677]
[1755392105327,0.71,188.42,188.4,0.03]
[1755392105828,0.71,188.42,188.41,0.03]
[1755392106023,4.24614917,188.42,188.41,0.03]
[1755392110338,13.4847844,188.42,188.41,0.03]
[1755392111746,15.56838117,188.42,188.41,0.03]
[1755392111956,13.4847844,188.42,188.41,0.03]
[1755392112323,13.48384122,188.42,188.41,0.03]
[1755392114153,15.56743799,188.42,188.41,0.03]
[1755392114743,13.48384122,188.42,188.41,0.03]
[1755392115058,52.66743799,188.42,188.41,0.03]
[1755392120143,50.58384122,188.42,188.41,0.03]
[1755392120353,52.66743799,188.42,188.41,0.03]
[1755392121949,52.66375225,188.42,188.41,0.03]
[1755392140785,50.58015548,188.42,188.41,0.03]
[1755392140986,52.66375225,188.42,188.41,0.03]
[1755392141167,7.46286327,188.42,188.41,0.03]
[1755392141371,44.46286327,188.42,188.41,0.03]
[1755392141964,40.53614917,188.42,188.41,0.03]
[1755392143368,44.46481791,188.42,188.41,0.03]
[1755392143894,45.18481791,188.42,188.41,0.03]
[1755392144073,52.57570689,188.42,188.41,0.03]
[1755392144889,7.46481791,188.42,188.41,0.03]
[1755392145077,44.46481791,188.42,188.41,0.03]
[1755392147075,40.53614917,188.42,188.41,0.03]
[1755392147288,44.46692261,188.42,188.41,0.03]
[1755392154094,40.53614917,188.42,188.41,0.03]
[1755392154295,44.47217487,188.42,188.41,0.03]
[1755392155205,48.88774404,188.42,188.41,0.03]
[1755392155613,44.47217487,188.42,188.41,0.03]
[1755392156787,7.47217487,188.42,188.41,2.23359677]
[1755392156972,3.53614917,188.42,188.41,2.23359677]
[1755392157485,3.53614917,188.42,188.41,7.54117067]
[1755392158295,42.07556917,188.47,188.41,7.54117067]
[1755392158481,3.54191839,188.46,188.44,2.08359677]
[1755392158690,3.54191839,188.45,188.44,2.08359677]
[1755392160496,3.54043978,188.45,188.44,2.08359677]
[1755392162989,4.20043978,188.45,188.42,2.08359677]
[1755392163193,4.20043978,188.45,188.41,5.33749646]
[1755392163194,4.20043978,188.44,188.41,7.42109323]
[1755392163409,4.20043978,188.43,188.41,2.11359677]
[1755392163604,0.66,188.43,188.41,0.03]
[1755392163809,4.19634322,188.42,188.41,0.03]
[1755392164804,6.27993999,188.42,188.41,0.03]
[1755392165118,12.11610886,188.42,188.41,0.03]
[1755392167303,16.04364113,188.42,188.41,0.03]
[1755392167809,42.04364113,188.42,188.41,0.03]
[1755392170920,42.04272408,188.42,188.41,0.03]
[1755392172226,46.4682738,188.42,188.41,0.03]
[1755392186142,48.5956508,188.42,188.41,0.03]
[1755392188234,44.17010108,188.42,188.41,0.03]
[1755392188838,48.5956508,188.42,188.41,0.03]
[1755392191540,48.59769188,188.42,188.41,0.03]
[1755392193456,63.70390745,188.42,188.41,0.03]
[1755392196563,37.70390745,188.42,188.41,0.03]
[1755392200457,37.70257753,188.42,188.41,0.03]
[1755392202269,33.27702781,188.42,188.41,0.03]
[1755392203472,33.27702781,188.42,188.4,0.03]
[1755392203678,76.96679641,188.41,188.4,0.03]
[1755392203973,77.66679641,188.41,188.4,0.03]
[1755392204149,76.96679641,188.41,188.4,0.03]
[1755392204351,84.40186031,188.41,188.4,0.03]
[1755392204760,85.12186031,188.41,188.4,0.03]
[1755392205669,84.40186031,188.41,188.4,0.03]
[1755392206360,84.40435153,188.41,188.4,0.03]
[1755392206975,35.59365082,188.41,188.4,0.03]
[1755392207178,66.53634322,188.41,188.4,0.15]
[1755392207369,40.53634322,188.41,188.4,0.15]
[1755392207570,3.53634322,188.41,188.4,0.15]
[1755392207773,40.53634322,188.41,188.4,0.15]
[1755392208093,40.53634322,188.41,188.4,0.03]
[1755392208473,44.47220224,188.41,188.4,0.03]
[1755392209399,48.89173228,188.41,188.4,0.03]
[1755392209564,11.89173228,188.41,188.4,0.03]
[1755392210067,3.53634322,188.41,188.4,2.23359677]
[1755392211872,3.53634322,188.41,188.4,7.54145239]
[1755392212689,37.0,188.46,188.4,7.54145239]
[1755392212880,4.07135756,188.45,188.41,0.12]
[1755392213080,3.5424809,188.44,188.43,2.08359677]
[1755392215206,3.5424809,188.44,188.43,7.51060733]
[1755392218388,0.06,188.45,188.43,7.51060733]
[1755392218591,0.06,188.45,188.44,7.3903257]
[1755392218790,3.59565394,188.45,188.44,7.3903257]
[1755392222116,4.31565394,188.45,188.44,5.30672893]
[1755392222316,4.31565394,188.45,188.42,2.08359677]
[1755392222501,4.25565394,188.44,188.42,2.08359677]
[1755392222695,0.72,188.44,188.42,2.08359677]
[1755392223291,0.78,188.45,188.43,5.30701056]
[1755392223490,3.53289791,188.44,188.43,5.30701056]
[1755392224130,4.25289791,188.44,188.43,5.30701056]
[1755392225421,0.72,188.44,188.43,5.30701056]
[1755392231723,0.78,188.45,188.43,7.39060733]
[1755392238806,4.31043102,188.45,188.43,7.39060733]
[1755392239006,0.78,188.45,188.43,7.39060733]
[1755392245226,0.78,188.45,188.41,5.3375739]
[1755392245422,0.78,188.45,188.43,2.08359677]
[1755392247239,0.78,188.45,188.44,7.3903257]
[1755392247537,4.31504149,188.45,188.44,7.3903257]
[1755392249756,4.31504149,188.45,188.43,2.08359677]
[1755392249922,3.53504149,188.44,188.43,2.08359677]
[1755392251548,3.53504149,188.44,188.43,7.39060733]
[1755392257060,1e-08,188.45,188.44,15.10621557]
[1755392257245,0.06,188.48,188.46,26.0]
[1755392257448,0.06,188.48,188.47,2.61418519]
[1755392257642,0.06,188.48,188.47,2.73418519]